[Event "UZB-ch Men Final 2019"]
[Site "Tashkent"]
[Date "2019.07.14"]
[Round "13.3"]
[White "Dzhumaev, Marat"]
[Black "Khoroshev, Nikita"]
[Result "1/2-1/2"]
[ECO "C65"]
[WhiteElo "2439"]
[BlackElo "2414"]
[Annotator "ChessBase"]
[PlyCount "32"]
[EventDate "2019.07.02"]
[EventType "tourn"]
[EventCountry "UZB"]
[SourceTitle "playchess.com"]
[Source "ChessBase"]
[SourceQuality "1"]
[TimeControl "5400+30"]

1. e4 {[%emt 0:04:51]} e5 {[%emt 0:00:00]} 2. Nf3 {[%emt 0:00:28]} Nc6 {[%emt 0:00:00]} 3. Bb5 {[%emt 0:12:27]} Nf6 {[%emt 0:00:01]} 4. Bxc6 {[%emt 0:04:41]} dxc6 {[%emt 0:02:24]} 5. d3 {[%emt 0:00:10]} Nd7 {[%emt 0:00:18]} 6. Nbd2 {[%emt 0:00:15]} Bd6 {[%emt 0:01:02]} 7. Nc4 {[%emt 0:00:57]} c5 {[%emt 0:00:09]} 8. O-O {[%emt 0:00:33]} O-O {[%emt 0:00:09]} 9. Bd2 {[%emt 0:05:42]} Re8 {[%emt 0:00:10]} 10. a3 {[%emt 0:01:05]} Nf8 {[%emt 0:03:51]} 11. h3 {[%emt 0:01:19]} f6 {[%emt 0:00:13]} 12. b4 {[%emt 0:01:03]} Ne6 {[%emt 0:00:05]} 13. c3 {[%emt 0:05:59]} Bf8 {[%emt 0:00:34]} 14. Be3 {[%emt 0:00:11]} b6 {[%emt 0:01:02]} 15. Qc2 {[%emt 0:00:27]} a5 {[%emt 0:00:44]} 16. bxc5 {[%emt 0:05:13]} Nxc5 {[%emt 0:00:27]} 1/2-1/2

[Event "UZB-ch Men Final 2019"]
[Site "Tashkent"]
[Date "2019.07.14"]
[Round "13.4"]
[White "Abdisalimov, Abdimalik"]
[Black "Sindarov, Javokhir"]
[Result "0-1"]
[ECO "D91"]
[WhiteElo "2391"]
[BlackElo "2479"]
[Annotator "ChessBase"]
[PlyCount "82"]
[EventDate "2019.07.02"]
[EventType "tourn"]
[EventCountry "UZB"]
[SourceTitle "playchess.com"]
[Source "ChessBase"]
[SourceQuality "1"]
[TimeControl "5400+30"]

1. d4 {[%emt 0:00:00]} Nf6 {[%emt 0:00:00]} 2. c4 {[%emt 0:00:00]} g6 {[%emt 0:00:00]} 3. Nc3 {[%emt 0:00:00]} d5 {[%emt 0:00:00]} 4. Nf3 {[%emt 0:00:00]} Bg7 {[%emt 0:00:00]} 5. Bg5 {[%emt 0:00:00]} Ne4 {[%emt 0:00:40]} 6. cxd5 {[%emt 0:00:30]} Nxg5 {[%emt 0:01:12]} 7. Nxg5 {[%emt 0:00:04]} e6 {[%emt 0:00:06]} 8. Qd2 {[%emt 0:00:02]} h6 {[%emt 0:03:46]} 9. Nh3 {[%emt 0:00:37]} exd5 {[%emt 0:00:06]} 10. Qe3+ {[%emt 0:04:48]} Kf8 {[%emt 0:00:07]} 11. Nf4 {[%emt 0:00:07]} c6 {[%emt 0:00:06]} 12. O-O-O {[%emt 0:00:32]} Nd7 {[%emt 0:02:13]} 13. Qd3 {[%emt 0:03:25]} Nf6 {[%emt 0:01:44]} 14. f3 {[%emt 0:00:39]} h5 {[%emt 0:14:35]} 15. e4 {[%emt 0:02:31]} Bh6 {[%emt 0:00:08]} 16. g3 {[%emt 0:00:03]} g5 {[%emt 0:00:08]} 17. Nfe2 {[%emt 0:00:38]} g4+ {[%emt 0:00:25]} 18. Nf4 {[%emt 0:02:09]} h4 {[%emt 0:14:02]} 19. Kb1 {[%emt 0:05:09]} b5 {[%emt 0:16:46]} 20. e5 {[%emt 0:22:45]} b4 {[%emt 0:06:19]} 21. Na4 {[%emt 0:01:27]} Bxf4 {[%emt 0:00:07]} 22. gxf4 {[%emt 0:00:06]} Nh5 {[%emt 0:00:05]} 23. fxg4 {[%emt 0:03:54]} Bxg4 {[%emt 0:00:22]} 24. Rc1 {[%emt 0:00:10]} Nxf4 {[%emt 0:00:28]} 25. Qd2 {[%emt 0:00:03]} Qg5 {[%emt 0:02:12]} 26. Qxb4+ {[%emt 0:03:33]} Kg7 {[%emt 0:00:07]} 27. Ba6 {[%emt 0:04:52]} Rh6 {[%emt 0:02:28]} 28. Rcf1 {[%emt 0:02:52]} Rg6 {[%emt 0:01:09]} 29. Qd2 {[%emt 0:02:38]} Bf5+ {[%emt 0:03:11]} 30. Ka1 {[%emt 0:00:37]} Be4 {[%emt 0:01:01]} 31. Rhg1 {[%emt 0:01:28]} Qxg1 {[%emt 0:00:10]} 32. Qxf4 {[%emt 0:00:04]} Rf8 {[%emt 0:00:33]} 33. Nc5 {[%emt 0:00:57]} Qxd4 {[%emt 0:07:09]} 34. Nd7 {[%emt 0:00:56]} Rg1 {[%emt 0:00:15]} 35. Qc1 {[%emt 0:00:03]} Rxf1 {[%emt 0:00:17]} 36. Qxf1 {[%emt 0:00:02]} Bg6 {[%emt 0:00:49]} 37. Nxf8 {[%emt 0:02:00]} Kxf8 {[%emt 0:00:08]} 38. e6 {[%emt 0:00:02]} Qe5 {[%emt 0:00:39]} 39. exf7 {[%emt 0:00:03]} Qxh2 {[%emt 0:00:06]} 40. Qf6 {[%emt 0:01:57]} Qh1+ {[%emt 0:00:13]} 41. Bf1 {[%emt 0:00:03]} Qe4 {[%emt 0:00:06]} 0-1

[Event "UZB-ch Men Final 2019"]
[Site "Tashkent"]
[Date "2019.07.14"]
[Round "13.5"]
[White "Rakhimov, Rakhmatjon"]
[Black "Iuldachev, Saidali"]
[Result "0-1"]
[ECO "A41"]
[WhiteElo "2107"]
[BlackElo "2451"]
[Annotator "ChessBase"]
[PlyCount "67"]
[EventDate "2019.07.02"]
[EventType "tourn"]
[EventCountry "UZB"]
[SourceTitle "playchess.com"]
[Source "ChessBase"]
[SourceQuality "1"]
[TimeControl "5400+30"]

1. d4 {[%emt 0:00:00]} d6 {[%emt 0:00:40]} 2. c4 {[%emt 0:00:00]} e5 {[%emt 0:00:27]} 3. Nf3 {[%emt 0:07:10]} e4 {[%emt 0:00:20]} 4. Nfd2 {[%emt 0:04:16]} f5 {[%emt 0:09:41]} 5. Nc3 {[%emt 0:01:09]} Nf6 {[%emt 0:00:31]} 6. g3 {[%emt 0:06:22]} h5 {[%emt 0:04:32]} 7. h4 {[%emt 0:04:07]} c6 {[%emt 0:25:11]} 8. Bh3 {[%emt 0:03:32]} d5 {[%emt 0:01:09]} 9. cxd5 {[%emt 0:01:34]} e3 {[%emt 0:03:21]} 10. fxe3 {[%emt 0:02:34]} Bd6 {[%emt 0:00:13]} 11. Kf2 {[%emt 0:18:49]} cxd5 {[%emt 0:04:22]} 12. Kg2 {[%emt 0:01:42]} Nc6 {[%emt 0:01:57]} 13. Qb3 {[%emt 0:02:18]} Bc7 {[%emt 0:01:50]} 14. Rf1 {[%emt 0:01:15]} g6 {[%emt 0:05:00]} 15. e4 {[%emt 0:04:56]} dxe4 {[%emt 0:05:00]} 16. Ndxe4 {[%emt 0:02:39]} Nxe4 {[%emt 0:01:07]} 17. Nxe4 {[%emt 0:02:10]} Nxd4 {[%emt 0:00:25]} 18. Qc4 {[%emt 0:06:10]} Be6 {[%emt 0:02:43]} 19. Qc5 {[%emt 0:03:37]} b6 {[%emt 0:02:58]} 20. Qc3 {[%emt 0:01:11]} Bd5 {[%emt 0:02:11]} 21. Bg5 {[%emt 0:00:41]} Bxe4+ {[%emt 0:01:11]} 22. Kf2 {[%emt 0:02:09]} Qd7 {[%emt 0:03:43]} 23. Bf6 {[%emt 0:03:18]} Nb5 {[%emt 0:01:41]} 24. Qb3 {[%emt 0:03:50]} Rf8 {[%emt 0:00:49]} 25. Rfd1 {[%emt 0:00:29]} Nd6 {[%emt 0:00:25]} 26. Be5 {[%emt 0:04:47]} O-O-O {[%emt 0:02:44]} 27. Rac1 {[%emt 0:00:35]} Kb7 {[%emt 0:00:11]} 28. Rd4 {[%emt 0:05:33]} Bb8 {[%emt 0:03:48]} 29. Rcd1 {[%emt 0:00:26]} Qe7 {[%emt 0:01:30]} 30. Bf4 {[%emt 0:03:12]} Bc6 {[%emt 0:00:12]} 31. Bg5 {[%emt 0:02:01]} Ne4+ {[%emt 0:01:06]} 32. Rxe4 {[%emt 0:01:17]} fxe4+ {[%emt 0:00:12]} 33. Kg2 {[%emt 0:00:13]} e3+ {[%emt 0:00:30]} 34. Kh2 {[%emt 0:00:06]} 0-1